[Event "*** SCC Grand Prix: Titled Tuesday Blitz"]
[Site "Chess.com"]
[Date "2020.10.06"]
[Round "1"]
[White "Caterpiller35"]
[Black "lacafi"]
[Result "1-0"]
[WhiteElo "2503"]
[BlackElo "2099"]
[TimeControl "180+1"]
[EndTime "10:01:27 PDT"]
[Termination "Caterpiller35 won by resignation"]

1. d4 {[%clk 0:03:00.7]} 1... f5 {[%clk 0:02:59.5]} 2. Nc3 {[%clk 0:03:00.2]}
2... Nf6 {[%clk 0:02:59.6]} 3. Bg5 {[%clk 0:02:59.5]} 3... g6 {[%clk 0:02:59.7]}
4. Bxf6 {[%clk 0:02:58.2]} 4... exf6 {[%clk 0:02:59.8]} 5. h4 {[%clk 0:02:58.5]}
5... d5 {[%clk 0:02:55.2]} 6. h5 {[%clk 0:02:58.2]} 6... Bg7 {[%clk 0:02:53.9]}
7. e3 {[%clk 0:02:56.5]} 7... c6 {[%clk 0:02:51]} 8. Qf3 {[%clk 0:02:55.8]} 8...
Qe7 {[%clk 0:02:36.5]} 9. Bd3 {[%clk 0:02:55.4]} 9... Nd7 {[%clk 0:02:30.9]} 10.
Nge2 {[%clk 0:02:53.2]} 10... Nf8 {[%clk 0:02:21.8]} 11. h6 {[%clk 0:02:52.9]}
1-0

[Event "*** SCC Grand Prix: Titled Tuesday Blitz"]
[Site "Chess.com"]
[Date "2020.10.06"]
[Round "1"]
[White "fighter2jz"]
[Black "PlotnikovPavel"]
[Result "1-0"]
[WhiteElo "2691"]
[BlackElo "2360"]
[TimeControl "180+1"]
[EndTime "10:01:38 PDT"]
[Termination "fighter2jz won by resignation"]

1. e4 {[%clk 0:02:56.7]} 1... c5 {[%clk 0:02:59.8]} 2. Nf3 {[%clk 0:02:53.4]}
2... Nc6 {[%clk 0:02:59.2]} 3. d4 {[%clk 0:02:54.2]} 3... cxd4 {[%clk 0:03:00]}
4. Nxd4 {[%clk 0:02:55]} 4... Nf6 {[%clk 0:02:59.8]} 5. Nc3 {[%clk 0:02:55.5]}
5... e5 {[%clk 0:02:59.9]} 6. Ndb5 {[%clk 0:02:55]} 6... d6 {[%clk 0:02:59.7]}
7. Nd5 {[%clk 0:02:55.5]} 7... a6 {[%clk 0:02:56.3]} 8. Nbc7+ {[%clk 0:02:38.5]}
8... Kd7 {[%clk 0:02:52]} 9. Nxa8 {[%clk 0:02:39.4]} 9... Nxd5 {[%clk
0:02:51.8]} 10. exd5 {[%clk 0:02:37.9]} 10... Ne7 {[%clk 0:02:51.8]} 11. Be3
{[%clk 0:02:34.4]} 11... Qa5+ {[%clk 0:02:47.3]} 12. c3 {[%clk 0:02:34.3]} 12...
Qxd5 {[%clk 0:02:35.2]} 13. Nb6+ {[%clk 0:02:32.9]} 1-0

[Event "*** SCC Grand Prix: Titled Tuesday Blitz"]
[Site "Chess.com"]
[Date "2020.10.06"]
[Round "1"]
[White "GukeshDommaraju"]
[Black "sewin16"]
[Result "1-0"]
[WhiteElo "2803"]
[BlackElo "2412"]
[TimeControl "180+1"]
[EndTime "10:02:29 PDT"]
[Termination "GukeshDommaraju won by resignation"]

1. d4 {[%clk 0:03:00.9]} 1... Nf6 {[%clk 0:02:58.8]} 2. Nf3 {[%clk 0:03:00.4]}
2... e6 {[%clk 0:02:56.5]} 3. Bf4 {[%clk 0:03:00]} 3... d5 {[%clk 0:02:55.5]} 4.
e3 {[%clk 0:02:59.5]} 4... Bd6 {[%clk 0:02:55.9]} 5. Nbd2 {[%clk 0:02:59.3]}
5... O-O {[%clk 0:02:54.5]} 6. Bd3 {[%clk 0:02:59.5]} 6... b6 {[%clk 0:02:54.2]}
7. O-O {[%clk 0:02:59]} 7... Bb7 {[%clk 0:02:54.5]} 8. Ne5 {[%clk 0:02:58.6]}
8... c5 {[%clk 0:02:52.3]} 9. c3 {[%clk 0:02:56.8]} 9... Ne4 {[%clk 0:02:42.9]}
10. Bxe4 {[%clk 0:02:37.8]} 10... dxe4 {[%clk 0:02:42.1]} 11. Ndc4 {[%clk
0:02:37]} 11... Be7 {[%clk 0:02:37.2]} 12. dxc5 {[%clk 0:02:36.6]} 12... Bxc5
{[%clk 0:02:35.4]} 13. Qg4 {[%clk 0:02:30.7]} 13... f5 {[%clk 0:02:25]} 14. Qg3
{[%clk 0:02:26.2]} 14... Bd5 {[%clk 0:02:04.1]} 15. Rfd1 {[%clk 0:02:18.1]}
15... Qf6 {[%clk 0:02:02.8]} 1-0

[Event "*** SCC Grand Prix: Titled Tuesday Blitz"]
[Site "Chess.com"]
[Date "2020.10.06"]
[Round "1"]
[White "LubovMarkelova"]
[Black "valeriocarnicelli"]
[Result "0-1"]
[WhiteElo "2212"]
[BlackElo "2545"]
[TimeControl "180+1"]
[EndTime "10:02:43 PDT"]
[Termination "valeriocarnicelli won by resignation"]

1. Nf3 {[%clk 0:02:53.3]} 1... Nf6 {[%clk 0:02:58.4]} 2. c4 {[%clk 0:02:53.2]}
2... c6 {[%clk 0:02:58.1]} 3. d4 {[%clk 0:02:53]} 3... d5 {[%clk 0:02:58.2]} 4.
e3 {[%clk 0:02:51]} 4... e6 {[%clk 0:02:57.9]} 5. b3 {[%clk 0:02:50.9]} 5...
Nbd7 {[%clk 0:02:56.9]} 6. Bb2 {[%clk 0:02:51.1]} 6... Bd6 {[%clk 0:02:56.7]} 7.
Bd3 {[%clk 0:02:49]} 7... Ne4 {[%clk 0:02:56.2]} 8. O-O {[%clk 0:02:45.7]} 8...
O-O {[%clk 0:02:54.3]} 9. Nbd2 {[%clk 0:02:41.4]} 9... f5 {[%clk 0:02:53]} 10.
Ne5 {[%clk 0:02:41.4]} 10... Rf6 {[%clk 0:02:52.2]} 11. f3 {[%clk 0:02:34.7]}
11... Nxd2 {[%clk 0:02:51]} 12. Qxd2 {[%clk 0:02:34.7]} 12... Rh6 {[%clk
0:02:50.9]} 13. e4 {[%clk 0:02:19.7]} 13... Nxe5 {[%clk 0:02:47.7]} 14. dxe5
{[%clk 0:02:19.3]} 14... Bc5+ {[%clk 0:02:48]} 15. Rf2 {[%clk 0:02:06]} 15...
dxe4 {[%clk 0:02:47.6]} 16. fxe4 {[%clk 0:02:01.2]} 16... fxe4 {[%clk
0:02:47.5]} 0-1

[Event "*** SCC Grand Prix: Titled Tuesday Blitz"]
[Site "Chess.com"]
[Date "2020.10.06"]
[Round "1"]
[White "Msb2"]
[Black "GlennTipton"]
[Result "1-0"]
[WhiteElo "2905"]
[BlackElo "2455"]
[TimeControl "180+1"]
[EndTime "10:03:21 PDT"]
[Termination "Msb2 won by resignation"]

1. d4 {[%clk 0:03:00.9]} 1... Nf6 {[%clk 0:02:59.6]} 2. c4 {[%clk 0:03:00.8]}
2... c5 {[%clk 0:02:59.2]} 3. d5 {[%clk 0:03:00.9]} 3... e6 {[%clk 0:02:59.6]}
4. Nc3 {[%clk 0:03:00.4]} 4... exd5 {[%clk 0:03:00.5]} 5. cxd5 {[%clk
0:03:01.3]} 5... d6 {[%clk 0:03:01.4]} 6. Nf3 {[%clk 0:03:02]} 6... g6 {[%clk
0:03:01.8]} 7. Bg5 {[%clk 0:03:02.6]} 7... h6 {[%clk 0:03:01.4]} 8. Bh4 {[%clk
0:03:02.1]} 8... g5 {[%clk 0:03:01.8]} 9. Bg3 {[%clk 0:03:01.9]} 9... Nh5 {[%clk
0:03:01.9]} 10. Nd2 {[%clk 0:03:02.5]} 10... Bg7 {[%clk 0:02:58]} 11. Nc4 {[%clk
0:03:00.4]} 11... Nxg3 {[%clk 0:02:57]} 12. hxg3 {[%clk 0:03:01.3]} 12... a6
{[%clk 0:02:53.1]} 13. a4 {[%clk 0:02:59.4]} 13... O-O {[%clk 0:02:48.8]} 14. e4
{[%clk 0:02:58.2]} 14... f5 {[%clk 0:02:43]} 15. exf5 {[%clk 0:02:56.6]} 15...
Bxf5 {[%clk 0:02:42.4]} 16. Ne3 {[%clk 0:02:56.3]} 16... Qf6 {[%clk 0:02:33.6]}
17. Be2 {[%clk 0:02:31.7]} 17... Nd7 {[%clk 0:02:28.7]} 18. O-O {[%clk
0:02:26.2]} 18... Bg6 {[%clk 0:02:21.6]} 19. Bg4 {[%clk 0:02:22.7]} 19... Rfd8
{[%clk 0:01:53.1]} 20. Be6+ {[%clk 0:02:19]} 20... Bf7 {[%clk 0:01:48.4]} 21.
Ne4 {[%clk 0:02:18.1]} 21... Qe7 {[%clk 0:01:47.4]} 22. Nf5 {[%clk 0:02:16.1]}
22... Qf8 {[%clk 0:01:47.8]} 23. Nexd6 {[%clk 0:02:07.2]} 23... Bxe6 {[%clk
0:01:45.3]} 24. dxe6 {[%clk 0:02:08.1]} 24... Ne5 {[%clk 0:01:42.3]} 25. e7
{[%clk 0:02:07.6]} 1-0

[Event "*** SCC Grand Prix: Titled Tuesday Blitz"]
[Site "Chess.com"]
[Date "2020.10.06"]
[Round "1"]
[White "PavelChernomordik"]
[Black "kingnb"]
[Result "1-0"]
[WhiteElo "2356"]
[BlackElo "2643"]
[TimeControl "180+1"]
[EndTime "10:03:24 PDT"]
[Termination "PavelChernomordik won by resignation"]

1. e4 {[%clk 0:02:57.4]} 1... d5 {[%clk 0:02:59.8]} 2. exd5 {[%clk 0:02:55.5]}
2... Nf6 {[%clk 0:02:59.7]} 3. Bb5+ {[%clk 0:02:53.1]} 3... Bd7 {[%clk 0:02:59]}
4. Bc4 {[%clk 0:02:53.2]} 4... Bg4 {[%clk 0:02:55.3]} 5. f3 {[%clk 0:02:52.9]}
5... Bf5 {[%clk 0:02:55.5]} 6. g4 {[%clk 0:02:51.9]} 6... Bg6 {[%clk 0:02:54.4]}
7. Nc3 {[%clk 0:02:49]} 7... Nbd7 {[%clk 0:02:53.5]} 8. g5 {[%clk 0:02:47.5]}
8... Nh5 {[%clk 0:02:51.1]} 9. d4 {[%clk 0:02:45]} 9... a6 {[%clk 0:02:42.6]}
10. a4 {[%clk 0:02:43]} 10... Nb6 {[%clk 0:02:42]} 11. Bb3 {[%clk 0:02:41.9]}
11... Qd7 {[%clk 0:02:37.7]} 12. a5 {[%clk 0:02:33.4]} 12... Nc8 {[%clk
0:02:38]} 13. Ba4 {[%clk 0:02:32.2]} 13... c6 {[%clk 0:02:38.2]} 14. dxc6 {[%clk
0:02:22.6]} 14... bxc6 {[%clk 0:02:39.1]} 15. d5 {[%clk 0:02:21.5]} 15... Na7
{[%clk 0:02:38]} 16. dxc6 {[%clk 0:02:10.8]} 16... Qc7 {[%clk 0:02:35.1]} 17.
Be3 {[%clk 0:01:57.1]} 17... e6 {[%clk 0:02:16.9]} 18. Qd7+ {[%clk 0:01:45]}
18... Qxd7 {[%clk 0:02:11.7]} 19. cxd7+ {[%clk 0:01:43.9]} 19... Kd8 {[%clk
0:02:12]} 20. Bb6+ {[%clk 0:01:43]} 20... Ke7 {[%clk 0:02:12.5]} 21. O-O-O
{[%clk 0:01:33.4]} 1-0

[Event "*** SCC Grand Prix: Titled Tuesday Blitz"]
[Site "Chess.com"]
[Date "2020.10.06"]
[Round "1"]
[White "Colombiano07"]
[Black "ftorodent"]
[Result "0-1"]
[WhiteElo "2351"]
[BlackElo "2672"]
[TimeControl "180+1"]
[EndTime "10:03:29 PDT"]
[Termination "ftorodent won by resignation"]

1. d4 {[%clk 0:02:59.2]} 1... f5 {[%clk 0:02:59.3]} 2. Nc3 {[%clk 0:02:57.9]}
2... Nf6 {[%clk 0:02:58.8]} 3. Bg5 {[%clk 0:02:58.6]} 3... d5 {[%clk 0:02:58.8]}
4. e3 {[%clk 0:02:56.9]} 4... g6 {[%clk 0:02:55.7]} 5. Bxf6 {[%clk 0:02:54.4]}
5... exf6 {[%clk 0:02:55.5]} 6. Qf3 {[%clk 0:02:55.3]} 6... Be6 {[%clk
0:02:54.3]} 7. O-O-O {[%clk 0:02:55.3]} 7... Nc6 {[%clk 0:02:49.3]} 8. h4 {[%clk
0:02:55.4]} 8... h5 {[%clk 0:02:48.3]} 9. Nh3 {[%clk 0:02:52.9]} 9... Bf7 {[%clk
0:02:47.4]} 10. Nf4 {[%clk 0:02:52.8]} 10... Ne7 {[%clk 0:02:47.4]} 11. Bd3
{[%clk 0:02:50]} 11... Qd7 {[%clk 0:02:45.8]} 12. Kb1 {[%clk 0:02:44.7]} 12...
O-O-O {[%clk 0:02:44.2]} 13. g3 {[%clk 0:02:37.1]} 13... Kb8 {[%clk 0:02:43.2]}
14. Qg2 {[%clk 0:02:37.1]} 14... Nc8 {[%clk 0:02:42]} 15. f3 {[%clk 0:02:32.6]}
15... Bb4 {[%clk 0:02:38.7]} 16. Nce2 {[%clk 0:02:26.8]} 16... Rhe8 {[%clk
0:02:37.4]} 17. Qf2 {[%clk 0:02:27.6]} 17... Qe7 {[%clk 0:02:34]} 18. Ng2 {[%clk
0:02:26.4]} 18... Nb6 {[%clk 0:02:28.8]} 19. c3 {[%clk 0:02:26]} 19... Bd6
{[%clk 0:02:28.5]} 20. Nef4 {[%clk 0:02:26]} 20... c5 {[%clk 0:02:28.1]} 21.
Rhe1 {[%clk 0:02:25.5]} 21... Qc7 {[%clk 0:02:22.7]} 22. Bb5 {[%clk 0:02:22]}
22... Re7 {[%clk 0:02:21.8]} 23. Re2 {[%clk 0:02:19]} 23... c4 {[%clk
0:02:17.7]} 0-1

[Event "*** SCC Grand Prix: Titled Tuesday Blitz"]
[Site "Chess.com"]
[Date "2020.10.06"]
[Round "1"]
[White "gilbert_gm"]
[Black "CakeinSpace2002"]
[Result "1-0"]
[WhiteElo "2565"]
[BlackElo "2252"]
[TimeControl "180+1"]
[EndTime "10:03:39 PDT"]
[Termination "gilbert_gm won by resignation"]

1. c4 {[%clk 0:02:40.2]} 1... c6 {[%clk 0:02:58.1]} 2. Nc3 {[%clk 0:02:38.3]}
2... d5 {[%clk 0:02:57.9]} 3. d4 {[%clk 0:02:37.8]} 3... Nf6 {[%clk 0:02:55.6]}
4. Nf3 {[%clk 0:02:38.7]} 4... e6 {[%clk 0:02:54.8]} 5. Bg5 {[%clk 0:02:38]}
5... Nbd7 {[%clk 0:02:53.6]} 6. e3 {[%clk 0:02:38]} 6... Qa5 {[%clk 0:02:50.4]}
7. Qc2 {[%clk 0:02:37.2]} 7... Bb4 {[%clk 0:02:46.1]} 8. Nd2 {[%clk 0:02:30.4]}
8... dxc4 {[%clk 0:02:42.7]} 9. Bxf6 {[%clk 0:02:28.7]} 9... Nxf6 {[%clk
0:02:43.6]} 10. Nxc4 {[%clk 0:02:28.2]} 10... Qc7 {[%clk 0:02:43.8]} 11. Be2
{[%clk 0:02:24]} 11... c5 {[%clk 0:02:43.2]} 12. dxc5 {[%clk 0:01:52.3]} 12...
Qxc5 {[%clk 0:02:34]} 13. O-O {[%clk 0:01:39.8]} 13... Bxc3 {[%clk 0:02:31.7]}
14. Qxc3 {[%clk 0:01:38.7]} 14... Bd7 {[%clk 0:02:31]} 15. Rac1 {[%clk
0:01:37.9]} 15... O-O {[%clk 0:02:29.7]} 16. Ne5 {[%clk 0:01:37.8]} 16... Qxc3
{[%clk 0:01:54.3]} 17. Rxc3 {[%clk 0:01:38.7]} 17... Rfc8 {[%clk 0:01:52.9]} 18.
Rfc1 {[%clk 0:01:31.9]} 18... Rxc3 {[%clk 0:01:51]} 19. Rxc3 {[%clk 0:01:32.8]}
19... Rc8 {[%clk 0:01:51.2]} 20. Nxd7 {[%clk 0:01:32]} 20... Rxc3 {[%clk
0:01:50.5]} 21. Nxf6+ {[%clk 0:01:31.7]} 21... gxf6 {[%clk 0:01:51.1]} 22. bxc3
{[%clk 0:01:32.6]} 1-0

[Event "*** SCC Grand Prix: Titled Tuesday Blitz"]
[Site "Chess.com"]
[Date "2020.10.06"]
[Round "1"]
[White "TrickyFortem"]
[Black "Hikaru"]
[Result "0-1"]
[WhiteElo "2475"]
[BlackElo "3229"]
[TimeControl "180+1"]
[EndTime "10:03:41 PDT"]
[Termination "Hikaru won by resignation"]

1. d4 {[%clk 0:02:59.9]} 1... g6 {[%clk 0:02:58.3]} 2. c4 {[%clk 0:03:00.4]}
2... Bg7 {[%clk 0:02:58.4]} 3. Nf3 {[%clk 0:02:58.7]} 3... c5 {[%clk 0:02:58.2]}
4. d5 {[%clk 0:02:57.6]} 4... d6 {[%clk 0:02:58.8]} 5. e4 {[%clk 0:02:55]} 5...
Nf6 {[%clk 0:02:56.8]} 6. Nc3 {[%clk 0:02:54.8]} 6... Bg4 {[%clk 0:02:57.4]} 7.
Be2 {[%clk 0:02:54.2]} 7... Bxf3 {[%clk 0:02:57.7]} 8. Bxf3 {[%clk 0:02:55.1]}
8... O-O {[%clk 0:02:58.2]} 9. O-O {[%clk 0:02:55.2]} 9... Na6 {[%clk
0:02:58.9]} 10. Re1 {[%clk 0:02:50.7]} 10... Nd7 {[%clk 0:02:59.2]} 11. Be2
{[%clk 0:02:49.1]} 11... Nc7 {[%clk 0:02:59.2]} 12. Bf1 {[%clk 0:02:49.2]} 12...
a6 {[%clk 0:02:59.1]} 13. h4 {[%clk 0:02:48.6]} 13... b5 {[%clk 0:02:55.1]} 14.
cxb5 {[%clk 0:02:49.5]} 14... axb5 {[%clk 0:02:54.5]} 15. Nxb5 {[%clk
0:02:49.7]} 15... Nb6 {[%clk 0:02:47]} 16. h5 {[%clk 0:02:48.3]} 16... c4 {[%clk
0:02:45.9]} 17. Nd4 {[%clk 0:02:46]} 17... Qd7 {[%clk 0:02:45.9]} 18. a3 {[%clk
0:02:36.1]} 18... Na6 {[%clk 0:02:43.3]} 19. Rb1 {[%clk 0:02:32.4]} 19... Nc5
{[%clk 0:02:43.2]} 20. b4 {[%clk 0:02:29]} 20... cxb3 {[%clk 0:02:43]} 21. Nxb3
{[%clk 0:02:29.3]} 21... Nca4 {[%clk 0:02:43.7]} 22. Qf3 {[%clk 0:02:17.8]}
22... Nc3 {[%clk 0:02:40.1]} 23. Rb2 {[%clk 0:02:15.2]} 23... Rxa3 {[%clk
0:02:35.4]} 24. Be3 {[%clk 0:02:02.4]} 24... Nba4 {[%clk 0:02:33.9]} 25. Rbb1
{[%clk 0:01:54.7]} 25... Nxb1 {[%clk 0:02:34.1]} 26. Rxb1 {[%clk 0:01:55.6]}
26... Nc3 {[%clk 0:02:34.8]} 27. Rb2 {[%clk 0:01:55]} 27... Nxd5 {[%clk
0:02:32.1]} 28. exd5 {[%clk 0:01:52.5]} 28... Bxb2 {[%clk 0:02:31.7]} 29. Nd2
{[%clk 0:01:53.2]} 29... Bg7 {[%clk 0:02:29.3]} 30. Ne4 {[%clk 0:01:49.3]} 30...
Qf5 {[%clk 0:02:28.4]} 31. Qxf5 {[%clk 0:01:45.3]} 31... gxf5 {[%clk 0:02:28.5]}
32. Ng5 {[%clk 0:01:46]} 32... Rxe3 {[%clk 0:02:27.7]} 33. fxe3 {[%clk
0:01:46.1]} 33... Bh6 {[%clk 0:02:28.3]} 34. Nf3 {[%clk 0:01:43.5]} 34... Bxe3+
{[%clk 0:02:29.2]} 35. Kh2 {[%clk 0:01:44]} 35... e5 {[%clk 0:02:30.1]} 36. dxe6
{[%clk 0:01:42.6]} 36... fxe6 {[%clk 0:02:30.9]} 37. Bb5 {[%clk 0:01:37.9]}
37... Kf7 {[%clk 0:02:30.9]} 38. Kg3 {[%clk 0:01:33.4]} 38... Rg8+ {[%clk
0:02:30.6]} 39. Kh3 {[%clk 0:01:33.6]} 39... Kf6 {[%clk 0:02:29.7]} 40. Bc4
{[%clk 0:01:28.7]} 40... Bf4 {[%clk 0:02:29.9]} 0-1

[Event "*** SCC Grand Prix: Titled Tuesday Blitz"]
[Site "Chess.com"]
[Date "2020.10.06"]
[Round "1"]
[White "Th3_Hound"]
[Black "CzechmVIII"]
[Result "0-1"]
[WhiteElo "2493"]
[BlackElo "2145"]
[TimeControl "180+1"]
[EndTime "10:03:44 PDT"]
[Termination "CzechmVIII won by resignation"]

1. e4 {[%clk 0:02:59.8]} 1... c5 {[%clk 0:03:00]} 2. Nf3 {[%clk 0:02:59.3]} 2...
d6 {[%clk 0:03:00.2]} 3. d4 {[%clk 0:02:59.1]} 3... cxd4 {[%clk 0:03:01.1]} 4.
Nxd4 {[%clk 0:02:59.6]} 4... Nf6 {[%clk 0:03:01.6]} 5. Nc3 {[%clk 0:02:59.4]}
5... g6 {[%clk 0:03:02.2]} 6. Be3 {[%clk 0:02:58.3]} 6... Bg7 {[%clk 0:03:02.6]}
7. f3 {[%clk 0:02:58.5]} 7... Nc6 {[%clk 0:03:02.7]} 8. Qd2 {[%clk 0:02:58.2]}
8... O-O {[%clk 0:03:02.6]} 9. O-O-O {[%clk 0:02:58]} 9... d5 {[%clk 0:03:02.9]}
10. exd5 {[%clk 0:02:56.5]} 10... Nxd5 {[%clk 0:03:03.8]} 11. Nxc6 {[%clk
0:02:56.1]} 11... bxc6 {[%clk 0:03:04.7]} 12. Bd4 {[%clk 0:02:55.8]} 12... Nxc3
{[%clk 0:03:04.9]} 13. Qxc3 {[%clk 0:02:53.8]} 13... Bh6+ {[%clk 0:03:05.1]} 14.
Be3 {[%clk 0:02:53.6]} 14... Bxe3+ {[%clk 0:03:05.2]} 15. Qxe3 {[%clk 0:02:54]}
15... Qb6 {[%clk 0:03:05.6]} 16. Qxe7 {[%clk 0:02:49.4]} 16... Be6 {[%clk
0:03:05.5]} 17. Qa3 {[%clk 0:02:48.7]} 17... Rad8 {[%clk 0:03:04.6]} 18. Bd3
{[%clk 0:02:34]} 18... Rd5 {[%clk 0:03:04.4]} 19. b3 {[%clk 0:02:16.9]} 19...
Rfd8 {[%clk 0:03:04.1]} 20. Rhe1 {[%clk 0:02:06.1]} 20... c5 {[%clk 0:02:51]}
21. Qa4 {[%clk 0:01:46.7]} 21... Rd4 {[%clk 0:02:38.3]} 22. Qa6 {[%clk
0:01:37.2]} 22... Rxd3 {[%clk 0:02:23.6]} 0-1

[Event "*** SCC Grand Prix: Titled Tuesday Blitz"]
[Site "Chess.com"]
[Date "2020.10.06"]
[Round "1"]
[White "DariaVoit"]
[Black "MikeSailer"]
[Result "1-0"]
[WhiteElo "2502"]
[BlackElo "2066"]
[TimeControl "180+1"]
[EndTime "10:03:51 PDT"]
[Termination "DariaVoit won by resignation"]

1. f4 {[%clk 0:02:53.5]} 1... d5 {[%clk 0:02:58.6]} 2. Nf3 {[%clk 0:02:52.8]}
2... g6 {[%clk 0:02:57]} 3. g3 {[%clk 0:02:53.7]} 3... Bg7 {[%clk 0:02:57.5]} 4.
Bg2 {[%clk 0:02:54.3]} 4... b6 {[%clk 0:02:57.3]} 5. O-O {[%clk 0:02:55.2]} 5...
Bb7 {[%clk 0:02:57.9]} 6. d4 {[%clk 0:02:53.2]} 6... Nd7 {[%clk 0:02:55.1]} 7.
Ne5 {[%clk 0:02:51.4]} 7... Ngf6 {[%clk 0:02:50.5]} 8. c4 {[%clk 0:02:51.2]}
8... e6 {[%clk 0:02:46.5]} 9. Nc3 {[%clk 0:02:50.6]} 9... Qc8 {[%clk 0:02:38]}
10. b3 {[%clk 0:02:48.4]} 10... dxc4 {[%clk 0:02:36.8]} 11. bxc4 {[%clk
0:02:42.5]} 11... Bxg2 {[%clk 0:02:36.2]} 12. Kxg2 {[%clk 0:02:43.4]} 12... Qb7+
{[%clk 0:02:34.5]} 13. Kg1 {[%clk 0:02:40.6]} 13... Nxe5 {[%clk 0:02:26]} 14.
fxe5 {[%clk 0:02:36.4]} 14... Ne4 {[%clk 0:02:21.3]} 15. Qa4+ {[%clk 0:02:18.7]}
15... Kf8 {[%clk 0:01:48]} 16. Qd7 {[%clk 0:02:13.9]} 16... f5 {[%clk
0:01:26.9]} 17. exf6 {[%clk 0:02:09]} 17... Nxf6 {[%clk 0:01:22.6]} 18. Bh6
{[%clk 0:01:52.7]} 1-0

[Event "*** SCC Grand Prix: Titled Tuesday Blitz"]
[Site "Chess.com"]
[Date "2020.10.06"]
[Round "1"]
[White "misterlamine"]
[Black "DenisQ"]
[Result "0-1"]
[WhiteElo "2336"]
[BlackElo "2655"]
[TimeControl "180+1"]
[EndTime "10:03:52 PDT"]
[Termination "DenisQ won by checkmate"]

1. d4 {[%clk 0:02:55.7]} 1... Nf6 {[%clk 0:02:59]} 2. c4 {[%clk 0:02:54.9]} 2...
c6 {[%clk 0:02:58.9]} 3. Nc3 {[%clk 0:02:52.3]} 3... d5 {[%clk 0:02:59.8]} 4.
Nf3 {[%clk 0:02:50.6]} 4... e6 {[%clk 0:02:58.1]} 5. Bg5 {[%clk 0:02:48.3]} 5...
h6 {[%clk 0:02:57]} 6. Bxf6 {[%clk 0:02:47.2]} 6... Qxf6 {[%clk 0:02:56.3]} 7.
e4 {[%clk 0:02:47.7]} 7... dxe4 {[%clk 0:02:55.6]} 8. Nxe4 {[%clk 0:02:48.6]}
8... Bb4+ {[%clk 0:02:55.8]} 9. Nc3 {[%clk 0:02:45.8]} 9... O-O {[%clk
0:02:53.5]} 10. Bd3 {[%clk 0:02:44.8]} 10... c5 {[%clk 0:02:53.2]} 11. O-O
{[%clk 0:02:40.7]} 11... cxd4 {[%clk 0:02:50.6]} 12. Ne4 {[%clk 0:02:40.7]}
12... Qf4 {[%clk 0:02:45.5]} 13. Nxd4 {[%clk 0:02:38.8]} 13... Rd8 {[%clk
0:02:44.5]} 14. Nc2 {[%clk 0:02:30.9]} 14... Nc6 {[%clk 0:02:38.3]} 15. Qe2
{[%clk 0:02:26.2]} 15... Be7 {[%clk 0:02:33.2]} 16. Rad1 {[%clk 0:02:24.9]}
16... Bd7 {[%clk 0:02:32.1]} 17. a3 {[%clk 0:02:24.2]} 17... Be8 {[%clk
0:02:30.6]} 18. b4 {[%clk 0:02:21.9]} 18... Nd4 {[%clk 0:02:27.7]} 19. Nxd4
{[%clk 0:02:22]} 19... Rxd4 {[%clk 0:02:28.4]} 20. Bb1 {[%clk 0:02:08.7]} 20...
Rad8 {[%clk 0:02:25.1]} 21. Rxd4 {[%clk 0:02:08.1]} 21... Rxd4 {[%clk 0:02:26]}
22. c5 {[%clk 0:02:07.7]} 22... a6 {[%clk 0:02:14.2]} 23. Qc2 {[%clk 0:01:57.7]}
23... Bb5 {[%clk 0:02:01.5]} 24. Rd1 {[%clk 0:01:45.3]} 24... Qxe4 {[%clk
0:01:55.7]} 25. Rxd4 {[%clk 0:01:24.1]} 25... Qe1# {[%clk 0:01:54.1]} 0-1

[Event "*** SCC Grand Prix: Titled Tuesday Blitz"]
[Site "Chess.com"]
[Date "2020.10.06"]
[Round "1"]
[White "davidkalashian"]
[Black "Chessbard1972"]
[Result "1-0"]
[WhiteElo "2574"]
[BlackElo "2259"]
[TimeControl "180+1"]
[EndTime "10:04:06 PDT"]
[Termination "davidkalashian won by resignation"]

1. e4 {[%clk 0:02:53.7]} 1... c5 {[%clk 0:02:59.5]} 2. Nc3 {[%clk 0:02:51.2]}
2... a6 {[%clk 0:02:59.6]} 3. Nf3 {[%clk 0:02:51.5]} 3... e6 {[%clk 0:02:58.6]}
4. d4 {[%clk 0:02:52]} 4... cxd4 {[%clk 0:02:58.8]} 5. Nxd4 {[%clk 0:02:52.9]}
5... Nc6 {[%clk 0:02:59.2]} 6. Be2 {[%clk 0:02:50.9]} 6... Qc7 {[%clk
0:02:59.3]} 7. O-O {[%clk 0:02:50.1]} 7... Nf6 {[%clk 0:02:59.4]} 8. Be3 {[%clk
0:02:48.6]} 8... Bb4 {[%clk 0:02:57.8]} 9. Na4 {[%clk 0:02:46.5]} 9... b5 {[%clk
0:02:56.1]} 10. Nxc6 {[%clk 0:02:45.2]} 10... bxa4 {[%clk 0:02:51.4]} 11. Nxb4
{[%clk 0:02:43.5]} 11... Nxe4 {[%clk 0:02:49.4]} 12. Bf3 {[%clk 0:02:29.8]}
12... Bb7 {[%clk 0:02:47.4]} 13. Qd4 {[%clk 0:02:20.8]} 13... Nf6 {[%clk
0:02:46.1]} 14. Bxb7 {[%clk 0:02:16]} 14... Qxb7 {[%clk 0:02:46]} 15. Bg5 {[%clk
0:02:13.4]} 15... Rg8 {[%clk 0:02:30.2]} 16. Nd3 {[%clk 0:02:06]} 16... Ne4
{[%clk 0:02:28.3]} 17. Be3 {[%clk 0:02:01.5]} 17... Rc8 {[%clk 0:02:24.1]} 18.
Qxa4 {[%clk 0:02:00.1]} 18... f5 {[%clk 0:02:22.4]} 19. Rad1 {[%clk 0:01:55.8]}
19... g5 {[%clk 0:02:21.6]} 20. Ne5 {[%clk 0:01:52.3]} 20... Rc7 {[%clk
0:02:16.7]} 21. f3 {[%clk 0:01:38.8]} 21... Nf6 {[%clk 0:02:10.5]} 22. Nc4
{[%clk 0:01:36.8]} 22... Kf8 {[%clk 0:02:00.9]} 23. Nd6 {[%clk 0:01:29.2]} 23...
Qxb2 {[%clk 0:01:56.2]} 24. Bd4 {[%clk 0:01:26.6]} 24... Qxc2 {[%clk 0:01:46]}
25. Qxc2 {[%clk 0:01:25]} 25... Rxc2 {[%clk 0:01:45.5]} 26. Bxf6 {[%clk
0:01:25.6]} 26... Rxa2 {[%clk 0:01:45.6]} 27. Rb1 {[%clk 0:01:23.4]} 1-0

[Event "*** SCC Grand Prix: Titled Tuesday Blitz"]
[Site "Chess.com"]
[Date "2020.10.06"]
[Round "1"]
[White "Shivagami"]
[Black "blitzking1729"]
[Result "0-1"]
[WhiteElo "2218"]
[BlackElo "2546"]
[TimeControl "180+1"]
[EndTime "10:04:07 PDT"]
[Termination "blitzking1729 won by resignation"]

1. f4 {[%clk 0:02:53.1]} 1... e5 {[%clk 0:02:56.8]} 2. fxe5 {[%clk 0:02:50.3]}
2... d6 {[%clk 0:02:54.4]} 3. exd6 {[%clk 0:02:49.1]} 3... Bxd6 {[%clk
0:02:53.3]} 4. g3 {[%clk 0:02:49.4]} 4... h5 {[%clk 0:02:52.5]} 5. Nf3 {[%clk
0:02:45.6]} 5... h4 {[%clk 0:02:47.6]} 6. gxh4 {[%clk 0:02:36]} 6... Bg4 {[%clk
0:02:44.6]} 7. e3 {[%clk 0:02:26.6]} 7... Nc6 {[%clk 0:02:39]} 8. Nc3 {[%clk
0:02:20.2]} 8... Ne5 {[%clk 0:02:34.3]} 9. Bg2 {[%clk 0:01:51.3]} 9... Qf6
{[%clk 0:02:05]} 10. O-O {[%clk 0:01:30.9]} 10... Nxf3+ {[%clk 0:01:48.4]} 11.
Bxf3 {[%clk 0:01:22.5]} 11... Qxh4 {[%clk 0:01:41.6]} 0-1